[Event "Titled Tuesday Blitz February 21 Early 2023"]
[White "Guliev, Logman"]
[Black "Khanin, Semen"]
[WhiteFideId "13400061"]
[BlackFideId "4111990"]
[WhiteElo "2250"]
[BlackElo "2566"]
[Result "0-1"]
[Round "01"]
[TimeControl "180+2"]
[Date "2023.02.21"]
[WhiteClock "0:00:06"]
[BlackClock "0:01:01"]

1. e4 {[%clk 0:02:57]}  c6 {[%clk 0:02:59]} 2. d4 {[%clk 0:02:56]}  d5 {[%clk 0:03:00]} 3. exd5 {[%clk 0:02:56]}  cxd5 {[%clk 0:03:01]} 4. c4 {[%clk 0:02:56]}  Nf6 {[%clk 0:02:59]} 5. Nc3 {[%clk 0:02:57]}  Nc6 {[%clk 0:02:58]} 6. Bg5 {[%clk 0:02:56]}  dxc4 {[%clk 0:02:57]} 7. d5 {[%clk 0:02:56]}  Na5 {[%clk 0:02:56]} 8. Bxc4 {[%clk 0:02:52]}  Nxc4 {[%clk 0:02:55]} 9. Qa4+ {[%clk 0:02:53]}  Bd7 {[%clk 0:02:56]} 10. Qxc4 {[%clk 0:02:53]}  g6 {[%clk 0:02:55]} 11. Bxf6 {[%clk 0:02:49]}  exf6 {[%clk 0:02:56]} 12. Nge2 {[%clk 0:02:47]}  Bg7 {[%clk 0:02:51]} 13. O-O {[%clk 0:02:46]}  O-O {[%clk 0:02:51]} 14. Rad1 {[%clk 0:02:46]}  f5 {[%clk 0:02:48]} 15. Nd4 {[%clk 0:02:28]}  Qb6 {[%clk 0:02:48]} 16. Na4 {[%clk 0:02:12]}  Qa5 {[%clk 0:02:44]} 17. Nc3 {[%clk 0:02:00]}  Rfc8 {[%clk 0:02:43]} 18. Qb3 {[%clk 0:01:58]}  Qb6 {[%clk 0:02:26]} 19. Qxb6 {[%clk 0:01:51]}  axb6 {[%clk 0:02:27]} 20. a3 {[%clk 0:01:51]}  Rc4 {[%clk 0:02:26]} 21. Ndb5 {[%clk 0:01:46]}  Rc5 {[%clk 0:02:20]} 22. Nd4 {[%clk 0:01:29]}  Rc4 {[%clk 0:02:08]} 23. Ndb5 {[%clk 0:01:29]}  Ra5 {[%clk 0:02:08]} 24. Nd6 {[%clk 0:01:19]}  Rc7 {[%clk 0:01:27]} 25. b4 {[%clk 0:01:09]}  Ra8 {[%clk 0:01:22]} 26. Ncb5 {[%clk 0:01:09]}  Rc2 {[%clk 0:01:21]} 27. Rfe1 {[%clk 0:00:55]}  Bf8 {[%clk 0:01:21]} 28. Rc1 {[%clk 0:00:46]}  Rd2 {[%clk 0:01:18]} 29. Red1 {[%clk 0:00:39]}  Rxd1+ {[%clk 0:01:15]} 30. Rxd1 {[%clk 0:00:39]}  Bxd6 {[%clk 0:01:10]} 31. Nxd6 {[%clk 0:00:39]}  Rxa3 {[%clk 0:01:11]} 32. Nxb7 {[%clk 0:00:38]}  Rb3 {[%clk 0:01:11]} 33. f3 {[%clk 0:00:23]}  Rxb4 {[%clk 0:01:11]} 34. Rd2 {[%clk 0:00:23]}  Rb1+ {[%clk 0:01:11]} 35. Kf2 {[%clk 0:00:23]}  Kf8 {[%clk 0:01:11]} 36. d6 {[%clk 0:00:23]}  Kg7 {[%clk 0:01:08]} 37. Rc2 {[%clk 0:00:20]}  Rd1 {[%clk 0:01:06]} 38. Rb2 {[%clk 0:00:18]}  Bc8 {[%clk 0:01:02]} 39. Rxb6 {[%clk 0:00:14]}  Bxb7 {[%clk 0:01:03]} 40. Rxb7 {[%clk 0:00:15]}  Rxd6 {[%clk 0:01:03]} 41. h4 {[%clk 0:00:15]}  h6 {[%clk 0:01:02]} 42. Kg3 {[%clk 0:00:14]}  Rd4 {[%clk 0:01:02]} 43. f4 {[%clk 0:00:14]}  Rd3+ {[%clk 0:01:01]} 44. Kh2 {[%clk 0:00:14]}  Kf6 {[%clk 0:01:02]} 45. Rb6+ {[%clk 0:00:13]}  Ke7 {[%clk 0:01:02]} 46. g3 {[%clk 0:00:13]}  Rd6 {[%clk 0:01:02]} 47. Rb7+ {[%clk 0:00:13]}  Ke6 {[%clk 0:01:03]} 48. Rb8 {[%clk 0:00:11]}  Kd5 {[%clk 0:01:02]} 49. Rh8 {[%clk 0:00:11]}  h5 {[%clk 0:01:02]} 50. Ra8 {[%clk 0:00:11]}  Ke4 {[%clk 0:01:02]} 51. Ra7 {[%clk 0:00:10]}  Kf3 {[%clk 0:01:01]} 52. Ra3+ {[%clk 0:00:07]}  Ke2 {[%clk 0:01:01]} 53. Ra7 {[%clk 0:00:06]}  Rd2 {[%clk 0:01:01]} 0-1


[Site "https://www.chess.com"]

[Event "Titled Tuesday Blitz February 21 Early 2023"]
[White "Bacrot, Etienne"]
[Black "Gheorghiu, Calin"]
[WhiteFideId "605506"]
[BlackFideId "1200305"]
[WhiteElo "2667"]
[BlackElo "2313"]
[Result "1-0"]
[Round "01"]
[TimeControl "180+2"]
[Date "2023.02.21"]
[WhiteClock "0:01:42"]
[BlackClock "0:01:05"]

1. e4 {[%clk 0:02:57]}  e6 {[%clk 0:02:59]} 2. Nf3 {[%clk 0:02:57]}  d5 {[%clk 0:02:59]} 3. exd5 {[%clk 0:02:57]}  exd5 {[%clk 0:02:59]} 4. d4 {[%clk 0:02:57]}  Nc6 {[%clk 0:02:55]} 5. Bb5 {[%clk 0:02:56]}  Bd6 {[%clk 0:02:53]} 6. O-O {[%clk 0:02:55]}  Ne7 {[%clk 0:02:52]} 7. c4 {[%clk 0:02:55]}  dxc4 {[%clk 0:02:47]} 8. Bxc4 {[%clk 0:02:53]}  O-O {[%clk 0:02:46]} 9. h3 {[%clk 0:02:49]}  Bf5 {[%clk 0:02:44]} 10. Nc3 {[%clk 0:02:48]}  h6 {[%clk 0:02:36]} 11. Re1 {[%clk 0:02:47]}  Ng6 {[%clk 0:02:31]} 12. a3 {[%clk 0:02:42]}  Nf4 {[%clk 0:02:24]} 13. Be3 {[%clk 0:02:04]}  Re8 {[%clk 0:01:26]} 14. Qb3 {[%clk 0:02:01]}  Qf6 {[%clk 0:01:21]} 15. Bxf4 {[%clk 0:02:00]}  Bxf4 {[%clk 0:01:19]} 16. Rxe8+ {[%clk 0:01:50]}  Rxe8 {[%clk 0:01:17]} 17. Nd5 {[%clk 0:01:50]}  Qd6 {[%clk 0:01:10]} 18. Nxf4 {[%clk 0:01:49]}  Qxf4 {[%clk 0:01:10]} 19. Bxf7+ {[%clk 0:01:48]}  Kf8 {[%clk 0:01:10]} 20. Bxe8 {[%clk 0:01:49]}  Kxe8 {[%clk 0:01:08]} 21. Qg8+ {[%clk 0:01:48]}  Kd7 {[%clk 0:01:08]} 22. Qxg7+ {[%clk 0:01:47]}  Kc8 {[%clk 0:01:08]} 23. Re1 {[%clk 0:01:46]}  b6 {[%clk 0:01:07]} 24. d5 {[%clk 0:01:45]}  Na5 {[%clk 0:01:05]} 25. Qe5 {[%clk 0:01:42]} 1-0


[Site "https://www.chess.com"]

[Event "Titled Tuesday Blitz February 21 Early 2023"]
[White "Bernadskiy, Vitaliy"]
[Black "Shohat, Yotam"]
[WhiteFideId "14100371"]
[BlackFideId "2813955"]
[WhiteElo "2592"]
[BlackElo "2346"]
[Result "1-0"]
[Round "01"]
[TimeControl "180+2"]
[Date "2023.02.21"]
[WhiteClock "0:00:58"]
[BlackClock "0:00:02"]

1. e4 {[%clk 0:03:00]}  g6 {[%clk 0:02:59]} 2. d4 {[%clk 0:03:00]}  Nf6 {[%clk 0:02:59]} 3. e5 {[%clk 0:02:59]}  Nh5 {[%clk 0:02:59]} 4. Nf3 {[%clk 0:02:58]}  d6 {[%clk 0:02:59]} 5. Nc3 {[%clk 0:02:56]}  Nc6 {[%clk 0:02:51]} 6. Bb5 {[%clk 0:02:50]}  a6 {[%clk 0:02:32]} 7. Ba4 {[%clk 0:02:50]}  b5 {[%clk 0:02:21]} 8. Bb3 {[%clk 0:02:50]}  dxe5 {[%clk 0:02:15]} 9. Bd5 {[%clk 0:02:42]}  Bd7 {[%clk 0:01:59]} 10. Nxe5 {[%clk 0:02:38]}  Nxe5 {[%clk 0:01:54]} 11. dxe5 {[%clk 0:02:36]}  Rb8 {[%clk 0:01:45]} 12. O-O {[%clk 0:02:21]}  e6 {[%clk 0:01:18]} 13. Bf3 {[%clk 0:02:20]}  Bc5 {[%clk 0:01:13]} 14. Bxh5 {[%clk 0:02:16]}  gxh5 {[%clk 0:01:13]} 15. Ne4 {[%clk 0:02:17]}  Be7 {[%clk 0:01:09]} 16. Qxh5 {[%clk 0:02:16]}  Bc6 {[%clk 0:01:06]} 17. Rd1 {[%clk 0:02:08]}  Qc8 {[%clk 0:00:49]} 18. Qg4 {[%clk 0:02:02]}  Qb7 {[%clk 0:00:43]} 19. Qg7 {[%clk 0:01:56]}  Rf8 {[%clk 0:00:41]} 20. Nf6+ {[%clk 0:01:49]}  Bxf6 {[%clk 0:00:40]} 21. exf6 {[%clk 0:01:50]}  Bd5 {[%clk 0:00:33]} 22. Bh6 {[%clk 0:01:48]}  Kd7 {[%clk 0:00:32]} 23. Qg3 {[%clk 0:01:41]}  Rg8 {[%clk 0:00:26]} 24. Bg7 {[%clk 0:01:42]}  Rbd8 {[%clk 0:00:25]} 25. a4 {[%clk 0:01:40]}  Kc8 {[%clk 0:00:25]} 26. axb5 {[%clk 0:01:40]}  axb5 {[%clk 0:00:25]} 27. h4 {[%clk 0:01:38]}  Qc6 {[%clk 0:00:24]} 28. Rd3 {[%clk 0:01:36]}  Kb7 {[%clk 0:00:18]} 29. Rc3 {[%clk 0:01:29]}  Qd6 {[%clk 0:00:10]} 30. Qxd6 {[%clk 0:01:13]}  Rxd6 {[%clk 0:00:11]} 31. Rca3 {[%clk 0:01:13]}  b4 {[%clk 0:00:03]} 32. Ra7+ {[%clk 0:01:11]}  Kb8 {[%clk 0:00:04]} 33. R7a4 {[%clk 0:01:11]}  Rb6 {[%clk 0:00:04]} 34. f3 {[%clk 0:01:10]}  Rd8 {[%clk 0:00:03]} 35. Rd1 {[%clk 0:01:06]}  Kc8 {[%clk 0:00:02]} 36. Kf2 {[%clk 0:01:04]}  Bc6 {[%clk 0:00:02]} 37. Rxd8+ {[%clk 0:01:03]}  Kxd8 {[%clk 0:00:03]} 38. Ra1 {[%clk 0:01:01]}  Bd5 {[%clk 0:00:03]} 39. Rd1 {[%clk 0:00:58]}  Rc6 {[%clk 0:00:04]} 40. Rd2 {[%clk 0:00:58]}  Kc8 {[%clk 0:00:03]} 41. g4 {[%clk 0:00:58]}  Kb7 {[%clk 0:00:04]} 42. g5 {[%clk 0:00:58]}  Rc4 {[%clk 0:00:02]} 43. Kg3 {[%clk 0:00:58]} 1-0


[Site "https://www.chess.com"]

[Event "Titled Tuesday Blitz February 21 Early 2023"]
[White "Balabayeva, Xeniya"]
[Black "Molina, Roberto Junio Brito"]
[WhiteFideId "13719688"]
[BlackFideId "2109450"]
[WhiteElo "2191"]
[BlackElo "2403"]
[Result "0-1"]
[Round "01"]
[TimeControl "180+2"]
[Date "2023.02.21"]
[WhiteClock "0:00:01"]
[BlackClock "0:00:21"]

1. e4 {[%clk 0:02:59]}  c6 {[%clk 0:03:00]} 2. d4 {[%clk 0:02:58]}  d5 {[%clk 0:03:01]} 3. Nd2 {[%clk 0:02:59]}  dxe4 {[%clk 0:03:01]} 4. Nxe4 {[%clk 0:03:00]}  Nd7 {[%clk 0:03:00]} 5. Nf3 {[%clk 0:02:51]}  Ngf6 {[%clk 0:02:58]} 6. Ng3 {[%clk 0:02:48]}  e6 {[%clk 0:02:57]} 7. c3 {[%clk 0:02:48]}  c5 {[%clk 0:02:52]} 8. Be3 {[%clk 0:02:26]}  Qc7 {[%clk 0:02:17]} 9. dxc5 {[%clk 0:02:06]}  Bxc5 {[%clk 0:02:11]} 10. Bxc5 {[%clk 0:02:03]}  Nxc5 {[%clk 0:02:07]} 11. Bb5+ {[%clk 0:02:02]}  Ke7 {[%clk 0:02:03]} 12. O-O {[%clk 0:01:44]}  Rd8 {[%clk 0:02:01]} 13. Qc2 {[%clk 0:01:41]}  Bd7 {[%clk 0:01:59]} 14. Bxd7 {[%clk 0:01:36]}  Rxd7 {[%clk 0:01:55]} 15. Rfe1 {[%clk 0:01:21]}  Rad8 {[%clk 0:01:53]} 16. Nd4 {[%clk 0:01:02]}  Kf8 {[%clk 0:01:42]} 17. b4 {[%clk 0:00:46]}  Na6 {[%clk 0:01:41]} 18. Qb3 {[%clk 0:00:45]}  Kg8 {[%clk 0:01:33]} 19. h3 {[%clk 0:00:43]}  Nb8 {[%clk 0:01:29]} 20. Ne4 {[%clk 0:00:38]}  Nxe4 {[%clk 0:01:26]} 21. Rxe4 {[%clk 0:00:38]}  Nc6 {[%clk 0:01:14]} 22. Nxc6 {[%clk 0:00:31]}  Qxc6 {[%clk 0:01:13]} 23. Rae1 {[%clk 0:00:29]}  g6 {[%clk 0:01:07]} 24. Qc4 {[%clk 0:00:22]}  Rc8 {[%clk 0:00:49]} 25. Qxc6 {[%clk 0:00:19]}  Rxc6 {[%clk 0:00:50]} 26. c4 {[%clk 0:00:13]}  Rd2 {[%clk 0:00:47]} 27. a3 {[%clk 0:00:10]}  Rd3 {[%clk 0:00:43]} 28. Ra1 {[%clk 0:00:05]}  b6 {[%clk 0:00:38]} 29. Kf1 {[%clk 0:00:04]}  Kf8 {[%clk 0:00:37]} 30. Ke2 {[%clk 0:00:03]}  Rb3 {[%clk 0:00:37]} 31. Kd2 {[%clk 0:00:03]}  Rb2+ {[%clk 0:00:36]} 32. Ke3 {[%clk 0:00:03]}  Ke7 {[%clk 0:00:32]} 33. Rf4 {[%clk 0:00:03]}  f5 {[%clk 0:00:32]} 34. Kd3 {[%clk 0:00:02]}  e5 {[%clk 0:00:29]} 35. Re1 {[%clk 0:00:02]}  Kf6 {[%clk 0:00:27]} 36. Rh4 {[%clk 0:00:01]}  h5 {[%clk 0:00:25]} 37. f4 {[%clk 0:00:01]}  e4+ {[%clk 0:00:23]} 38. Kc3 {[%clk 0:00:01]}  Rxg2 {[%clk 0:00:23]} 39. Rd1 {[%clk 0:00:01]}  Ke7 {[%clk 0:00:21]} 0-1


[Site "https://www.chess.com"]

[Event "Titled Tuesday Blitz February 21 Early 2023"]
[White "Rakhmanov, Aleksandr"]
[Black "Heinemann, Josefine"]
[WhiteFideId "4173708"]
[BlackFideId "12900460"]
[WhiteElo "2632"]
[BlackElo "2289"]
[Result "1-0"]
[Round "01"]
[TimeControl "180+2"]
[Date "2023.02.21"]
[WhiteClock "0:00:09"]
[BlackClock "0:00:10"]

1. d4 {[%clk 0:02:56]}  Nf6 {[%clk 0:02:57]} 2. c4 {[%clk 0:02:54]}  e6 {[%clk 0:02:56]} 3. Nc3 {[%clk 0:02:43]}  Bb4 {[%clk 0:02:55]} 4. Qc2 {[%clk 0:02:43]}  O-O {[%clk 0:02:50]} 5. a3 {[%clk 0:02:39]}  Bxc3+ {[%clk 0:02:49]} 6. Qxc3 {[%clk 0:02:40]}  d5 {[%clk 0:02:49]} 7. e3 {[%clk 0:02:37]}  b6 {[%clk 0:02:43]} 8. Nf3 {[%clk 0:02:36]}  Ba6 {[%clk 0:02:28]} 9. Be2 {[%clk 0:02:26]}  Nbd7 {[%clk 0:02:22]} 10. O-O {[%clk 0:02:25]}  c5 {[%clk 0:02:12]} 11. b3 {[%clk 0:02:18]}  Rc8 {[%clk 0:02:11]} 12. a4 {[%clk 0:02:12]}  cxd4 {[%clk 0:02:07]} 13. exd4 {[%clk 0:02:11]}  dxc4 {[%clk 0:01:56]} 14. bxc4 {[%clk 0:02:10]}  Qc7 {[%clk 0:01:34]} 15. Ba3 {[%clk 0:02:09]}  Rfd8 {[%clk 0:01:33]} 16. Rac1 {[%clk 0:02:07]}  Nd5 {[%clk 0:01:24]} 17. Qb2 {[%clk 0:00:26]}  Nf4 {[%clk 0:01:21]} 18. Rfe1 {[%clk 0:00:26]}  Nxe2+ {[%clk 0:01:01]} 19. Rxe2 {[%clk 0:00:27]}  Nf6 {[%clk 0:01:00]} 20. Ne5 {[%clk 0:00:22]}  Nd7 {[%clk 0:00:39]} 21. Nf3 {[%clk 0:00:21]}  Qf4 {[%clk 0:00:30]} 22. h3 {[%clk 0:00:19]}  Nf6 {[%clk 0:00:24]} 23. Rec2 {[%clk 0:00:15]}  Bb7 {[%clk 0:00:20]} 24. Be7 {[%clk 0:00:12]}  Re8 {[%clk 0:00:12]} 25. Bxf6 {[%clk 0:00:12]}  Bxf3 {[%clk 0:00:12]} 26. Be5 {[%clk 0:00:09]}  Qg5 {[%clk 0:00:11]} 27. Bg3 {[%clk 0:00:10]}  Bb7 {[%clk 0:00:11]} 28. c5 {[%clk 0:00:10]}  bxc5 {[%clk 0:00:10]} 29. Qxb7 {[%clk 0:00:09]} 1-0


[Site "https://www.chess.com"]

[Event "Titled Tuesday Blitz February 21 Early 2023"]
[White "Rodriguez Fontecha, Marcos"]
[Black "Vakhlamov, Igor L."]
[WhiteFideId "2256576"]
[BlackFideId "24126748"]
[WhiteElo "2309"]
[BlackElo "2413"]
[Result "0-1"]
[Round "01"]
[TimeControl "180+2"]
[Date "2023.02.21"]
[WhiteClock "0:01:11"]
[BlackClock "0:01:23"]

1. d4 {[%clk 0:02:59]}  d5 {[%clk 0:02:59]} 2. Bf4 {[%clk 0:02:58]}  Nf6 {[%clk 0:02:59]} 3. e3 {[%clk 0:02:58]}  Bf5 {[%clk 0:02:59]} 4. c4 {[%clk 0:02:58]}  e6 {[%clk 0:02:57]} 5. Nc3 {[%clk 0:02:58]}  Bb4 {[%clk 0:02:57]} 6. Qb3 {[%clk 0:02:58]}  Nc6 {[%clk 0:02:58]} 7. a3 {[%clk 0:02:57]}  Bxc3+ {[%clk 0:02:58]} 8. bxc3 {[%clk 0:02:58]}  Na5 {[%clk 0:02:57]} 9. Qa4+ {[%clk 0:02:57]}  c6 {[%clk 0:02:58]} 10. cxd5 {[%clk 0:02:55]}  Nxd5 {[%clk 0:02:58]} 11. Ne2 {[%clk 0:02:48]}  O-O {[%clk 0:02:52]} 12. Bg3 {[%clk 0:02:48]}  Bd3 {[%clk 0:02:41]} 13. Rc1 {[%clk 0:02:43]}  b5 {[%clk 0:02:36]} 14. Qd1 {[%clk 0:02:42]}  Qe7 {[%clk 0:02:35]} 15. Qxd3 {[%clk 0:02:40]}  Qxa3 {[%clk 0:02:34]} 16. e4 {[%clk 0:02:25]}  Nb6 {[%clk 0:02:11]} 17. Qb1 {[%clk 0:02:20]}  Nac4 {[%clk 0:01:59]} 18. Nf4 {[%clk 0:02:17]}  a5 {[%clk 0:01:59]} 19. Bxc4 {[%clk 0:02:10]}  Nxc4 {[%clk 0:01:59]} 20. Nd3 {[%clk 0:02:09]}  Rfd8 {[%clk 0:01:54]} 21. Nc5 {[%clk 0:02:03]}  e5 {[%clk 0:01:54]} 22. Qa1 {[%clk 0:01:47]}  Qxa1 {[%clk 0:01:45]} 23. Rxa1 {[%clk 0:01:48]}  exd4 {[%clk 0:01:46]} 24. cxd4 {[%clk 0:01:33]}  Rxd4 {[%clk 0:01:47]} 25. O-O {[%clk 0:01:33]}  a4 {[%clk 0:01:47]} 26. Rfd1 {[%clk 0:01:31]}  Rxd1+ {[%clk 0:01:45]} 27. Rxd1 {[%clk 0:01:32]}  f6 {[%clk 0:01:38]} 28. Kf1 {[%clk 0:01:16]}  b4 {[%clk 0:01:33]} 29. Rd4 {[%clk 0:01:11]}  b3 {[%clk 0:01:23]} 0-1


[Site "https://www.chess.com"]

[Event "Titled Tuesday Blitz February 21 Early 2023"]
[White "Grot, Blazej"]
[Black "Urazayev, Arystanbek"]
[WhiteFideId "21835845"]
[BlackFideId "13709810"]
[WhiteElo "1990"]
[BlackElo "2460"]
[Result "1-0"]
[Round "01"]
[TimeControl "180+2"]
[Date "2023.02.21"]
[WhiteClock "0:01:29"]
[BlackClock "0:00:03"]

1. e4 {[%clk 0:02:58]}  e6 {[%clk 0:02:41]} 2. d4 {[%clk 0:02:57]}  d5 {[%clk 0:02:40]} 3. Nc3 {[%clk 0:02:55]}  Bb4 {[%clk 0:02:40]} 4. e5 {[%clk 0:02:51]}  c5 {[%clk 0:02:40]} 5. a3 {[%clk 0:02:49]}  Bxc3+ {[%clk 0:02:41]} 6. bxc3 {[%clk 0:02:47]}  Ne7 {[%clk 0:02:40]} 7. Qg4 {[%clk 0:02:45]}  O-O {[%clk 0:02:40]} 8. Bd3 {[%clk 0:02:37]}  f5 {[%clk 0:02:41]} 9. exf6 {[%clk 0:02:31]}  Rxf6 {[%clk 0:02:41]} 10. Bg5 {[%clk 0:02:26]}  e5 {[%clk 0:02:39]} 11. Qh4 {[%clk 0:02:20]}  e4 {[%clk 0:02:35]} 12. Bxf6 {[%clk 0:02:19]}  gxf6 {[%clk 0:02:36]} 13. Be2 {[%clk 0:02:18]}  Ng6 {[%clk 0:02:18]} 14. Qg3 {[%clk 0:02:14]}  f5 {[%clk 0:02:19]} 15. Nh3 {[%clk 0:02:08]}  Nc6 {[%clk 0:02:19]} 16. Nf4 {[%clk 0:02:06]}  Qd6 {[%clk 0:01:56]} 17. Nxg6 {[%clk 0:02:05]}  Qxg3 {[%clk 0:01:57]} 18. Ne7+ {[%clk 0:01:53]}  Nxe7 {[%clk 0:01:55]} 19. hxg3 {[%clk 0:01:54]}  Be6 {[%clk 0:01:53]} 20. Rb1 {[%clk 0:01:47]}  cxd4 {[%clk 0:01:31]} 21. Rxb7 {[%clk 0:01:41]}  Re8 {[%clk 0:00:05]} 22. Bb5 {[%clk 0:01:31]}  Bc8 {[%clk 0:00:03]} 23. Rxa7 {[%clk 0:01:29]} 1-0


[Site "https://www.chess.com"]

[Event "Titled Tuesday Blitz February 21 Early 2023"]
[White "Harsh Suresh"]
[Black "Zacurdajev, Dmitry"]
[WhiteFideId "45018464"]
[BlackFideId "4196309"]
[WhiteElo "2298"]
[BlackElo "2273"]
[Result "1-0"]
[Round "01"]
[TimeControl "180+2"]
[Date "2023.02.21"]
[WhiteClock "0:00:05"]
[BlackClock "0:00:01"]

1. e4 {[%clk 0:03:00]}  c6 {[%clk 0:02:59]} 2. d3 {[%clk 0:02:56]}  d5 {[%clk 0:03:00]} 3. Nd2 {[%clk 0:02:56]}  e6 {[%clk 0:02:59]} 4. Ngf3 {[%clk 0:02:53]}  Nf6 {[%clk 0:02:59]} 5. g3 {[%clk 0:02:52]}  Be7 {[%clk 0:03:00]} 6. Bg2 {[%clk 0:02:52]}  O-O {[%clk 0:03:00]} 7. O-O {[%clk 0:02:53]}  c5 {[%clk 0:03:01]} 8. Re1 {[%clk 0:02:53]}  Nc6 {[%clk 0:03:02]} 9. e5 {[%clk 0:02:53]}  Nd7 {[%clk 0:03:01]} 10. Nf1 {[%clk 0:02:53]}  b5 {[%clk 0:03:02]} 11. h4 {[%clk 0:02:53]}  a5 {[%clk 0:03:02]} 12. N1h2 {[%clk 0:02:53]}  b4 {[%clk 0:03:03]} 13. h5 {[%clk 0:02:52]}  h6 {[%clk 0:03:03]} 14. Ng4 {[%clk 0:02:52]}  Re8 {[%clk 0:03:03]} 15. Bf4 {[%clk 0:02:52]}  Bf8 {[%clk 0:03:00]} 16. Qd2 {[%clk 0:02:50]}  Ba6 {[%clk 0:02:54]} 17. Bh3 {[%clk 0:02:21]}  Kh7 {[%clk 0:02:47]} 18. c3 {[%clk 0:02:11]}  a4 {[%clk 0:02:39]} 19. a3 {[%clk 0:02:10]}  bxc3 {[%clk 0:02:36]} 20. bxc3 {[%clk 0:02:10]}  Na5 {[%clk 0:02:31]} 21. Rad1 {[%clk 0:01:56]}  Nb3 {[%clk 0:02:22]} 22. Qe3 {[%clk 0:01:56]}  c4 {[%clk 0:02:17]} 23. d4 {[%clk 0:01:54]}  Rb8 {[%clk 0:02:08]} 24. Rb1 {[%clk 0:01:22]}  Na5 {[%clk 0:02:03]} 25. Rxb8 {[%clk 0:01:22]}  Qxb8 {[%clk 0:01:59]} 26. Bf1 {[%clk 0:01:21]}  Qb2 {[%clk 0:01:50]} 27. Be2 {[%clk 0:01:18]}  Qxa3 {[%clk 0:01:46]} 28. Bd1 {[%clk 0:01:18]}  Qa2 {[%clk 0:01:22]} 29. Kg2 {[%clk 0:01:01]}  a3 {[%clk 0:00:57]} 30. Re2 {[%clk 0:01:01]}  Qa1 {[%clk 0:00:57]} 31. Bc2+ {[%clk 0:01:01]}  Kh8 {[%clk 0:00:56]} 32. Bxh6 {[%clk 0:00:20]}  a2 {[%clk 0:00:47]} 33. Ng5 {[%clk 0:00:06]}  Re7 {[%clk 0:00:29]} 34. Qf4 {[%clk 0:00:06]}  Qxc3 {[%clk 0:00:23]} 35. Nxf7+ {[%clk 0:00:06]}  Rxf7 {[%clk 0:00:13]} 36. Qxf7 {[%clk 0:00:06]}  a1=Q {[%clk 0:00:12]} 37. Bxg7+ {[%clk 0:00:06]}  Bxg7 {[%clk 0:00:11]} 38. h6 {[%clk 0:00:07]}  Qf3+ {[%clk 0:00:01]} 39. Qxf3 {[%clk 0:00:05]} 1-0


[Site "https://www.chess.com"]

[Event "Titled Tuesday Blitz February 21 Early 2023"]
[White "Pakleza, Zbigniew"]
[Black "Wahedi, Ahmad Siar"]
[WhiteFideId "1119290"]
[BlackFideId "4651260"]
[WhiteElo "2494"]
[BlackElo "2274"]
[Result "1-0"]
[Round "01"]
[TimeControl "180+2"]
[Date "2023.02.21"]
[WhiteClock "0:00:07"]
[BlackClock "0:00:21"]

1. d4 {[%clk 0:03:00]}  d5 {[%clk 0:02:58]} 2. Bf4 {[%clk 0:03:00]}  c5 {[%clk 0:02:57]} 3. e3 {[%clk 0:03:00]}  Nc6 {[%clk 0:02:58]} 4. c3 {[%clk 0:03:01]}  Nf6 {[%clk 0:02:57]} 5. Nd2 {[%clk 0:03:01]}  e6 {[%clk 0:02:52]} 6. Ngf3 {[%clk 0:03:01]}  Bd6 {[%clk 0:02:52]} 7. Bg3 {[%clk 0:03:01]}  Qc7 {[%clk 0:02:42]} 8. dxc5 {[%clk 0:03:01]}  Bxg3 {[%clk 0:02:41]} 9. hxg3 {[%clk 0:03:02]}  a5 {[%clk 0:02:41]} 10. a3 {[%clk 0:02:54]}  a4 {[%clk 0:02:40]} 11. Bb5 {[%clk 0:02:37]}  Qa5 {[%clk 0:02:39]} 12. Qe2 {[%clk 0:02:14]}  Bd7 {[%clk 0:02:30]} 13. O-O {[%clk 0:02:11]}  O-O {[%clk 0:02:29]} 14. Rac1 {[%clk 0:01:58]}  Ne7 {[%clk 0:02:12]} 15. c4 {[%clk 0:01:47]}  Rfc8 {[%clk 0:02:03]} 16. Ne5 {[%clk 0:01:33]}  Be8 {[%clk 0:01:47]} 17. Bxe8 {[%clk 0:01:28]}  Nxe8 {[%clk 0:01:44]} 18. Nd3 {[%clk 0:01:09]}  Nf6 {[%clk 0:01:34]} 19. cxd5 {[%clk 0:01:01]}  exd5 {[%clk 0:01:33]} 20. Rc2 {[%clk 0:00:56]}  Qb5 {[%clk 0:01:25]} 21. Nf3 {[%clk 0:00:49]}  Ra5 {[%clk 0:01:10]} 22. Nd4 {[%clk 0:00:43]}  Qa6 {[%clk 0:01:07]} 23. Rfc1 {[%clk 0:00:38]}  Ne4 {[%clk 0:01:03]} 24. Qd1 {[%clk 0:00:28]}  h6 {[%clk 0:00:59]} 25. Nb4 {[%clk 0:00:26]}  Qf6 {[%clk 0:00:53]} 26. c6 {[%clk 0:00:12]}  bxc6 {[%clk 0:00:51]} 27. Qf3 {[%clk 0:00:08]}  c5 {[%clk 0:00:47]} 28. Nxd5 {[%clk 0:00:04]}  Nxd5 {[%clk 0:00:47]} 29. Qxe4 {[%clk 0:00:04]}  Nb6 {[%clk 0:00:39]} 30. Nf3 {[%clk 0:00:04]}  Rd8 {[%clk 0:00:34]} 31. Qf4 {[%clk 0:00:03]}  Qxf4 {[%clk 0:00:28]} 32. gxf4 {[%clk 0:00:04]}  Rb5 {[%clk 0:00:28]} 33. Rxc5 {[%clk 0:00:04]}  Rxb2 {[%clk 0:00:27]} 34. Rc7 {[%clk 0:00:04]}  Nd5 {[%clk 0:00:25]} 35. Ra7 {[%clk 0:00:03]}  Nf6 {[%clk 0:00:25]} 36. Rxa4 {[%clk 0:00:03]}  Ng4 {[%clk 0:00:24]} 37. Rf1 {[%clk 0:00:03]}  Ra2 {[%clk 0:00:23]} 38. Ne5 {[%clk 0:00:03]}  Nxe5 {[%clk 0:00:23]} 39. fxe5 {[%clk 0:00:04]}  Rd3 {[%clk 0:00:23]} 40. Ra8+ {[%clk 0:00:04]}  Kh7 {[%clk 0:00:23]} 41. a4 {[%clk 0:00:05]}  Rda3 {[%clk 0:00:23]} 42. Ra7 {[%clk 0:00:05]}  Kg6 {[%clk 0:00:22]} 43. Ra6+ {[%clk 0:00:04]}  Kh7 {[%clk 0:00:22]} 44. Ra7 {[%clk 0:00:05]}  Kg6 {[%clk 0:00:22]} 45. Ra6+ {[%clk 0:00:05]}  Kh7 {[%clk 0:00:23]} 46. g4 {[%clk 0:00:05]}  Rxa4 {[%clk 0:00:22]} 47. Rxa4 {[%clk 0:00:06]}  Rxa4 {[%clk 0:00:22]} 48. f3 {[%clk 0:00:06]}  g6 {[%clk 0:00:20]} 49. Kg2 {[%clk 0:00:06]}  g5 {[%clk 0:00:20]} 50. Kg3 {[%clk 0:00:06]}  Kg7 {[%clk 0:00:20]} 51. Rc1 {[%clk 0:00:06]}  Ra5 {[%clk 0:00:21]} 52. f4 {[%clk 0:00:06]}  Ra3 {[%clk 0:00:21]} 53. Kf3 {[%clk 0:00:05]}  Ra4 {[%clk 0:00:21]} 54. Rc7 {[%clk 0:00:05]}  Ra6 {[%clk 0:00:21]} 55. Rb7 {[%clk 0:00:05]}  Kg6 {[%clk 0:00:20]} 56. Rd7 {[%clk 0:00:05]}  Kg7 {[%clk 0:00:20]} 57. Ke4 {[%clk 0:00:04]}  Ra4+ {[%clk 0:00:20]} 58. Kf5 {[%clk 0:00:05]}  gxf4 {[%clk 0:00:19]} 59. exf4 {[%clk 0:00:06]}  Ra6 {[%clk 0:00:19]} 60. Rc7 {[%clk 0:00:05]}  Rb6 {[%clk 0:00:20]} 61. Re7 {[%clk 0:00:05]}  Ra6 {[%clk 0:00:20]} 62. e6 {[%clk 0:00:04]}  Ra5+ {[%clk 0:00:20]} 63. Ke4 {[%clk 0:00:05]}  Kf6 {[%clk 0:00:20]} 64. Rxf7+ {[%clk 0:00:04]}  Kxe6 {[%clk 0:00:20]} 65. Rh7 {[%clk 0:00:05]}  Ra4+ {[%clk 0:00:21]} 66. Kf3 {[%clk 0:00:06]}  Ra3+ {[%clk 0:00:18]} 67. Kg2 {[%clk 0:00:06]}  Ra2+ {[%clk 0:00:19]} 68. Kg3 {[%clk 0:00:07]}  Ra3+ {[%clk 0:00:19]} 69. Kh4 {[%clk 0:00:07]}  Rf3 {[%clk 0:00:20]} 70. Rxh6+ {[%clk 0:00:07]}  Kf7 {[%clk 0:00:20]} 71. Kg5 {[%clk 0:00:07]}  Kg7 {[%clk 0:00:21]} 72. Rd6 {[%clk 0:00:07]}  Rd3 {[%clk 0:00:21]} 73. Rxd3 {[%clk 0:00:07]} 1-0


[Site "https://www.chess.com"]